bitfinex/quotes_ETHUSD_20240825
["timestamp","ask_amount","ask_price","bid_price","bid_amount"]
[1724544258861,3.60581,2773.3,2772.8,3.60645]
[1724544259016,4.90293837,2773.3,2772.7,3.6065]
[1724544259217,4.90293837,2773.3,2772.5,10.21358]
[1724544259442,4.90293837,2773.3,2772.6,3.0]
[1724544259443,3.60594,2773.2,2772.6,3.0]
[1724544260049,2.3601,2773.1,2772.6,3.0]
[1724544260245,2.3601,2773.1,2772.7,3.60646]
[1724544260571,2.3601,2773.1,2772.6,3.0]
[1724544260572,2.3601,2773.1,2772.8,3.60644]
[1724544260736,2.3601,2773.1,2772.6,6.60661]
[1724544260923,2.3601,2773.1,2772.7,3.6065]
[1724544261250,2.3601,2773.4,2773.0,3.6062]
[1724544261417,3.29665037,2773.4,2773.0,3.6062]
[1724544263065,3.29665037,2773.4,2772.8,3.60636]
[1724544263272,6.90236037,2773.4,2772.8,3.60636]
[1724544263567,4.15581,2773.3,2772.7,3.60657]
[1724544264824,0.55,2773.3,2772.7,3.60657]
[1724544265022,0.55,2773.3,2772.8,3.60644]
[1724544266869,0.55,2773.3,2772.8,3.60638]
[1724544267104,0.485165,2773.3,2772.8,3.60638]
[1724544268318,5.19028854,2773.3,2772.7,3.60658]
[1724544268519,5.19028854,2773.3,2772.4,10.91691]
[1724544268520,2.4685,2773.2,2772.4,10.91691]
[1724544268749,2.4685,2773.2,2772.6,3.60662]
[1724544269326,2.4685,2773.2,2772.7,3.60655]
[1724544271421,2.4685,2773.2,2772.6,3.60662]
[1724544272069,3.57870554,2773.2,2772.6,3.60662]
[1724544272218,3.60607,2773.1,2772.5,3.60682]
[1724544272420,3.60607,2773.1,2772.4,3.60688]
[1724544272688,4.15628,2773.0,2772.4,3.60688]
[1724544272970,4.15628,2773.0,2772.2,3.60715]
[1724544272971,6.851075,2772.9,2772.2,3.60715]
[1724544273174,4.15647,2772.8,2772.2,3.60715]
[1724544273323,3.60659,2772.7,2772.1,7.31]
[1724544273520,0.55,2772.6,2772.1,7.31]
[1724544273923,0.55,2772.6,2772.1,10.91727]
[1724544275137,0.55,2772.6,2772.2,3.60723]
[1724544275343,0.55,2772.8,2772.2,3.60723]
[1724544275983,5.51922377,2772.8,2772.2,3.60723]
[1724544276738,1.91272377,2772.8,2772.2,3.60723]
[1724544276942,0.55,2772.8,2772.2,3.60723]
[1724544277190,0.55,2772.8,2772.1,7.31]
[1724544277395,2.4685,2772.9,2772.4,3.60687]
[1724544277740,2.4685,2772.9,2772.4,7.21376]
[1724544277953,2.4685,2772.9,2772.4,3.60687]
[1724544278183,2.4685,2772.9,2772.4,7.21376]
[1724544278485,2.4685,2772.9,2772.4,3.60687]
[1724544278854,2.4685,2772.9,2772.5,3.60677]
[1724544279182,3.49040554,2773.2,2772.6,3.60665]
[1724544279349,0.55,2773.1,2772.6,3.60665]
[1724544280597,4.15609,2773.1,2772.4,7.21381]
[1724544280744,8.88749555,2773.1,2772.4,3.60688]
[1724544281136,3.60624,2773.0,2772.4,3.60688]
[1724544281583,2.3802,2772.8,2772.2,7.21425]
[1724544281772,2.3802,2772.8,2772.3,3.60709]
[1724544282239,2.978854,2772.8,2772.3,3.60709]
[1724544284184,0.598654,2772.8,2772.3,7.21411]
[1724544284394,2.3802,2773.2,2772.5,3.60676]
[1724544284544,3.60609,2773.1,2772.5,7.21352]
[1724544284743,2.3802,2773.2,2772.5,3.60676]
[1724544285057,6.94536,2773.2,2772.6,3.60669]
[1724544285244,3.89212585,2773.7,2773.0,3.60618]
[1724544285596,2.3802,2773.7,2773.3,3.60579]
[1724544285794,1.51192585,2774.1,2773.1,2.3778]
[1724544286092,2.3802,2774.6,2774.1,3.60473]
[1724544286241,1.87908742,2774.8,2774.3,3.60447]
[1724544286445,0.93748733,2774.8,2774.3,3.60447]
[1724544287092,5.98394,2774.9,2774.3,3.60447]
[1724544287295,3.60387,2774.8,2774.1,3.60472]
[1724544287477,7.20783,2774.8,2774.0,3.60481]
[1724544287681,3.60387,2774.8,2774.0,3.60481]
[1724544287882,0.598407,2774.7,2774.1,3.60476]
[1724544288182,2.3802,2774.9,2774.1,3.60476]
[1724544288756,3.60396,2774.8,2774.1,3.60476]
[1724544289307,3.60409,2774.7,2773.9,5.98273]
[1724544289455,4.15409,2774.7,2774.0,3.60485]
[1724544289953,3.60412,2774.6,2773.9,5.98273]
[1724544290188,0.55,2774.5,2773.9,5.98273]
[1724544290700,3.60438,2774.4,2773.7,6.60529]
[1724544290859,0.55,2774.5,2773.7,6.6052]
[1724544291057,4.15425,2774.5,2773.9,3.60502]
[1724544291652,3.60439,2774.4,2773.7,6.60518]
[1724544291853,3.60472,2774.2,2773.5,3.6055]
[1724544292099,5.98481,2774.3,2773.6,3.60542]
[1724544292302,0.55,2774.2,2773.6,3.60542]
[1724544295687,4.15465,2774.2,2773.4,2.3778]
[1724544295944,3.60492,2774.0,2773.4,3.0]
[1724544296245,4.89347818,2774.2,2773.3,3.60573]
[1724544296246,3.60503,2773.9,2773.3,3.60573]
[1724544296403,0.55,2773.8,2773.3,3.60573]
[1724544296607,4.15517,2773.8,2773.3,0.962526]
[1724544296791,3.60535,2773.7,2773.1,6.01953]
[1724544296991,3.60535,2773.7,2773.1,3.60603]
[1724544297721,6.09555,2773.7,2773.1,3.60603]
[1724544298090,2.4902,2773.7,2773.1,7.21201]
[1724544298734,2.4902,2773.7,2773.2,3.60591]
[1724544298891,0.55,2773.6,2773.1,3.60598]
[1724544300420,1.025093,2773.5,2772.4,19.53]
[1724544300619,1.025093,2773.5,2772.7,3.6065]
[1724544300620,3.60594,2773.3,2772.7,3.6065]
[1724544300823,0.55,2773.4,2772.8,3.60645]
[1724544300992,4.1557,2773.4,2772.8,3.60645]
[1724544301192,3.6057,2773.4,2772.8,3.60645]
[1724544301396,4.15582,2773.3,2772.7,3.6065]
[1724544301596,0.55,2773.3,2772.8,3.60643]
[1724544302381,4.15583,2773.3,2772.7,3.6065]
[1724544303434,0.55,2773.3,2772.6,3.60672]
[1724544303587,3.60594,2773.2,2772.5,3.6068]
[1724544303771,3.60594,2773.2,2772.6,1.09168]
[1724544304218,7.21198,2773.2,2772.6,1.09168]
[1724544304416,3.60594,2773.2,2772.6,1.09168]
[1724544304621,3.60594,2773.2,2772.5,3.60676]
[1724544304622,4.15611,2773.1,2772.5,3.60676]
[1724544306918,0.55,2773.1,2772.5,3.60676]
[1724544307288,0.55,2773.1,2772.8,3.60646]
[1724544307492,7.21154,2773.4,2772.8,3.60646]
[1724544307493,0.55,2773.3,2772.8,3.60646]
[1724544307878,4.15581,2773.3,2772.6,3.60661]
[1724544308078,4.15581,2773.3,2772.6,5.058963]
[1724544308617,4.15581,2773.3,2772.6,8.665593]
[1724544308795,4.15581,2773.3,2772.6,5.058963]
[1724544308796,3.60597,2773.2,2772.6,5.058963]
[1724544309132,0.165675,2773.3,2772.6,5.058963]
[1724544309286,5.11769585,2773.4,2772.6,5.058963]
[1724544309785,5.11769585,2773.4,2772.7,3.60648]
[1724544309786,3.60577,2773.4,2772.7,3.60648]
[1724544310109,3.60577,2773.4,2772.7,4.4730223]
[1724544310641,3.60581,2773.3,2772.7,4.4730223]
[1724544311246,3.60599,2773.2,2772.7,0.8665423]
[1724544311391,3.60599,2773.2,2772.5,3.60674]
[1724544311730,3.60599,2773.2,2772.6,3.60663]
[1724544312735,3.60575,2773.4,2772.8,3.60636]
[1724544313432,3.60575,2773.4,2772.7,3.60651]
[1724544313586,3.60575,2773.4,2772.7,4.32784]
[1724544313927,8.72348585,2773.4,2772.7,4.32784]
[1724544314096,5.11767585,2773.4,2772.6,3.60671]
[1724544314299,5.11767585,2773.4,2772.5,3.60679]
[1724544314300,3.60595,2773.2,2772.5,7.21355]
[1724544315083,3.60595,2773.2,2772.5,7.21353]
[1724544315728,3.60595,2773.2,2772.5,3.60676]
[1724544315940,5.94931,2773.0,2772.4,7.31]
[1724544317228,5.94931,2773.0,2772.4,10.91696]
[1724544317886,3.60595,2773.2,2772.4,7.31]
[1724544318168,1.51192585,2773.3,2772.3,3.0]
[1724544318313,3.74821169,2774.8,2773.9,7.21006]
[1724544318655,3.74821169,2774.8,2774.7,7.20798]
[1724544318936,2.63561849,2776.2,2775.4,3.60303]
[1724544319242,2.63561849,2776.2,2774.8,2.4067]
[1724544319243,3.39595765,2776.0,2774.8,2.4067]
[1724544319383,2.63561849,2776.2,2774.7,7.324758]
[1724544319384,3.39595765,2775.5,2774.7,3.0]
[1724544319591,6.03157614,2776.2,2774.2,3.0]
[1724544319592,3.39595765,2775.2,2774.2,3.0]
[1724544319847,3.39595765,2774.9,2774.2,3.0]
[1724544320128,3.60301,2775.5,2774.1,3.53603046]
[1724544320129,3.39595765,2774.6,2774.1,3.53603046]
[1724544320347,3.39595765,2774.3,2773.5,3.46624522]
[1724544320523,3.39595765,2773.8,2773.5,3.46624522]
[1724544320895,0.33959577,2774.5,2773.5,3.46624522]
[1724544320896,3.0,2774.2,2773.5,3.46624522]
[1724544321166,0.33959577,2774.5,2773.5,3.46624522]
[1724544321167,3.73555342,2774.5,2773.5,3.46624522]
[1724544321302,5.73905765,2774.5,2773.6,3.60535]
[1724544321505,6.39595765,2774.8,2773.8,3.60509]
[1724544323043,6.39595765,2774.8,2773.9,3.60497]
[1724544323695,6.39595765,2774.8,2773.7,3.60523]
[1724544323896,3.39595765,2774.2,2773.5,0.33510688]
[1724544324641,3.39595765,2774.2,2773.5,3.94059688]
[1724544324965,0.63959576,2774.7,2773.5,0.33510688]
[1724544325150,3.0,2774.9,2773.5,0.33510688]
[1724544325351,3.0,2774.9,2774.3,3.39595765]
[1724544325665,6.36562153,2776.2,2776.0,3.60224]
[1724544325888,2.25427813,2776.3,2776.2,3.60204]
[1724544325889,1.02893861,2776.3,2776.2,3.60204]
[1724544326086,5.62330566,2777.7,2776.8,3.60126]
[1724544326366,6.49749011,2778.5,2778.4,3.59919]
[1724544326570,4.88213347,2778.5,2778.4,17.46648947]
[1724544326784,5.56153213,2779.7,2779.6,7.19526]
[1724544326993,3.52230489,2779.7,2779.6,10.79289]
[1724544327113,0.1333315,2779.8,2779.6,10.79289]
[1724544327114,0.1333315,2779.8,2779.6,16.74959]
[1724544327316,0.1333315,2779.8,2779.7,0.55]
[1724544327548,2.3431,2779.7,2779.6,7.19526]
[1724544327750,7.10311286,2779.7,2778.8,3.59861]
[1724544327967,3.08664828,2779.7,2778.8,3.59861]
[1724544328269,3.08664828,2779.7,2777.9,3.5998]
[1724544328270,4.01236971,2778.9,2778.0,3.59964]
[1724544328490,4.51236971,2779.0,2777.1,5.59725557]
[1724544328491,2.3431,2778.8,2777.3,3.60055]
[1724544328782,3.60002,2777.8,2776.0,6.72895818]
[1724544329071,3.60002,2777.8,2776.5,3.12675818]
[1724544329285,3.0,2777.7,2776.6,0.07202107]
[1724544329564,3.0,2778.0,2776.5,3.12675818]
[1724544329866,2.3431,2778.3,2776.5,3.12675818]
[1724544330067,3.59965,2778.1,2776.6,0.31267582]
[1724544330274,3.0,2778.0,2776.5,3.12675818]
[1724544330435,6.59978,2778.0,2776.5,3.12675818]
[1724544330624,3.5999,2777.9,2776.5,3.12675818]
[1724544331282,3.0,2777.8,2776.6,0.40654831]
[1724544331456,3.59978,2778.0,2776.5,3.12675818]
[1724544331623,3.359978,2777.9,2776.5,4.24682414]
[1724544331974,3.60028,2777.6,2776.5,3.12675818]
[1724544332156,0.359978,2777.9,2776.6,3.40654831]
[1724544332483,2.3431,2779.0,2776.6,3.40654831]
[1724544332789,2.3431,2779.7,2778.2,3.59945]
[1724544332952,2.3431,2779.7,2778.3,3.40654831]
[1724544333288,2.3431,2779.7,2777.0,4.56841995]
[1724544333440,3.59836,2779.1,2777.5,3.60029]
[1724544333651,2.71703967,2779.7,2777.6,3.910029]
[1724544333854,6.31459967,2779.7,2778.1,3.59948]
[1724544334055,2.71703967,2779.7,2778.2,7.00593831]
[1724544334287,2.71703967,2779.7,2778.3,0.55]
[1724544334688,2.71703967,2779.7,2778.4,3.59914]
[1724544334999,0.1333315,2779.8,2778.5,3.964914]
[1724544335145,0.1333315,2779.8,2778.6,0.40654831]
[1724544335355,0.1333315,2779.8,2778.0,4.56841995]
[1724544335356,3.59755,2779.7,2778.2,6.59939]
[1724544335548,3.59755,2779.7,2778.3,0.55]
[1724544335851,0.1333315,2779.8,2778.3,0.95654831]
[1724544336053,0.1333315,2779.8,2778.4,0.80220314]
[1724544336260,0.1333315,2779.8,2778.7,3.59873]
[1724544336694,0.1333315,2779.8,2778.8,3.55]
[1724544337515,0.1333315,2779.8,2778.8,3.0]
[1724544337805,0.1333315,2779.8,2778.4,4.00566831]
[1724544337806,0.0768855,2779.8,2778.6,3.59888]
[1724544338012,0.0768855,2779.8,2778.7,3.55]
[1724544338197,0.0768855,2779.8,2778.8,0.355]
[1724544338504,0.0768855,2779.8,2779.0,3.59837]
[1724544338505,0.00753049,2779.8,2779.0,3.59837]
[1724544338709,0.00753049,2779.8,2779.1,0.55]
[1724544338893,0.00753049,2779.8,2779.1,3.55]
[1724544339055,0.00753049,2779.8,2779.6,3.59757]
[1724544339261,2.392,2781.4,2779.8,3.59731]
[1724544339458,2.392,2781.4,2779.9,1.3555463]
[1724544339808,0.3740559,2781.3,2779.9,3.59716]
[1724544339971,0.3740559,2781.3,2779.8,3.59736]
[1724544340175,0.3740559,2781.3,2779.7,3.0]
[1724544340176,0.3740559,2781.3,2780.0,3.0]
[1724544340481,3.5947,2781.9,2780.4,3.59653]
[1724544340695,0.37390951,2782.1,2780.5,3.0]
[1724544340862,3.59505,2781.6,2780.0,3.5971]
[1724544341063,2.392,2781.4,2779.7,3.59747]
[1724544341410,3.59585,2781.0,2779.8,0.55]
[1724544341558,5.392,2781.4,2779.3,5.98447]
[1724544341906,5.392,2781.4,2779.4,3.59788]
[1724544342211,5.392,2781.4,2778.8,0.44330117]
[1724544342212,8.16391995,2781.3,2779.1,3.59827]
[1724544342513,3.59662,2780.4,2779.2,0.359827]
[1724544342807,3.59623,2780.7,2779.2,0.80312817]
[1724544343008,3.59661,2780.4,2779.2,3.957977]
[1724544343216,3.0,2780.8,2779.2,0.359827]
[1724544343376,3.0,2780.9,2779.5,3.5977]
[1724544343559,3.59614,2780.8,2779.5,3.5977]
[1724544343756,3.0,2780.9,2779.5,3.5977]
[1724544344004,3.59621,2780.7,2779.6,3.59763]
[1724544344175,3.5961,2780.8,2779.6,3.59763]
[1724544344375,3.0,2780.9,2779.6,3.59763]
[1724544344376,4.25583,2780.7,2779.6,3.59763]
[1724544344576,0.65961,2780.7,2779.4,3.59789]
[1724544344904,3.59635,2780.6,2779.2,6.59807]
[1724544345113,3.0,2781.2,2779.6,3.59761]
[1724544345114,3.59621,2780.7,2779.6,3.59761]
[1724544345275,3.59609,2780.8,2779.4,3.59789]
[1724544345477,3.0,2781.2,2779.3,7.14801]
[1724544345478,3.59648,2780.5,2779.3,7.14801]
[1724544346228,3.59648,2780.5,2779.3,3.55]
[1724544346525,6.59568,2781.2,2779.2,3.0]
[1724544346526,0.359648,2780.4,2779.2,3.0]
[1724544346730,2.392,2780.4,2779.0,3.59841]
[1724544346883,2.392,2780.4,2778.7,3.59878]
[1724544347094,3.59755,2779.7,2778.7,3.59878]
[1724544347313,0.359755,2779.6,2778.7,3.958658]
[1724544347519,0.359755,2779.6,2778.4,3.5991]
[1724544347699,2.392,2779.5,2778.2,3.59943]
[1724544347898,2.392,2779.5,2777.8,3.59985]
[1724544348132,5.392,2779.5,2777.7,3.60006]
[1724544348433,5.392,2779.5,2777.6,0.360029]
[1724544348631,3.59895,2778.6,2777.7,0.2746529]
[1724544348780,3.59895,2778.6,2777.6,0.360029]
[1724544348781,7.19799,2778.6,2777.6,0.360029]
[1724544348983,1.1251755,2779.4,2776.4,5.98824]
[1724544348984,3.59949,2778.2,2776.4,5.98824]
[1724544349189,3.59921,2778.4,2777.4,3.60046]
[1724544349418,2.392,2778.9,2776.6,0.7]
[1724544349732,6.59815,2779.3,2778.0,3.59969]
[1724544349936,3.59817,2779.2,2778.1,3.67152285]
[1724544350227,0.359817,2779.1,2778.0,3.59969]
[1724544350532,6.59803,2779.3,2777.8,3.59991]
[1724544350730,3.59844,2779.0,2778.0,3.59959]
[1724544351828,3.59844,2779.0,2777.8,3.59991]
[1724544351829,3.59739,2779.8,2778.8,3.59864]
[1724544352327,3.59698,2780.2,2778.4,3.0]
[1724544352565,3.59751,2779.7,2778.7,3.59879]
[1724544352832,2.392,2779.7,2778.1,4.62259117]
[1724544353122,2.392,2779.7,2778.1,4.14956]
[1724544353123,3.59803,2779.3,2778.1,4.14956]
[1724544353326,0.359803,2779.2,2778.1,4.42180312]
[1724544353538,0.359803,2779.2,2777.9,3.59982]
[1724544353690,3.59882,2778.7,2777.7,3.60006]
[1724544353889,3.59903,2778.6,2777.5,3.60032]
[1724544354199,3.59903,2778.6,2777.6,3.60022]
[1724544354514,3.59903,2778.6,2777.7,3.60009]
[1724544354515,3.59904,2778.6,2777.7,3.60009]
[1724544354885,3.59904,2778.6,2777.4,3.60047]
[1724544355135,3.59933,2778.3,2777.2,3.6007]
[1724544355316,3.958974,2778.5,2777.5,3.60032]
[1724544355517,3.5992,2778.4,2777.5,3.60032]
[1724544356124,0.359904,2778.5,2777.2,3.60071]
[1724544356429,3.59967,2778.1,2777.2,3.60071]
[1724544356586,4.31957,2778.1,2777.2,3.60071]
[1724544356981,3.59971,2778.0,2777.1,10.91086]
[1724544357185,0.359904,2778.5,2776.8,12.65364893]
[1724544357186,0.359904,2778.5,2776.8,0.43364893]
[1724544357414,3.959014,2778.5,2777.6,3.60023]
[1724544358125,3.59921,2778.4,2777.5,3.60033]
[1724544358335,3.59836,2779.1,2777.6,0.50564505]
[1724544358336,3.59838,2779.1,2777.6,0.50564505]
[1724544358629,3.59869,2778.8,2777.9,3.59981]
[1724544358842,3.59869,2778.8,2777.7,3.60006]
[1724544359002,0.359869,2778.7,2777.6,3.0]
[1724544359203,3.59921,2778.4,2777.6,3.0]
[1724544359496,3.59938,2778.3,2777.6,3.0]
[1724544359696,3.59938,2778.3,2777.4,3.60045]
[1724544359917,0.359938,2778.2,2777.5,3.60033]
[1724544360287,0.359938,2778.2,2777.2,3.60071]
[1724544360288,3.959388,2778.2,2777.2,3.60071]
[1724544360527,3.60009,2777.8,2776.8,3.60123]
[1724544360834,3.60009,2777.8,2775.9,3.60232]
[1724544360835,3.60001,2777.8,2776.2,3.60194]
[1724544361050,3.960161,2777.7,2776.6,3.60145]
[1724544361340,3.60037,2777.5,2776.6,3.60145]
[1724544361486,2.3291,2777.4,2776.0,3.60224]
[1724544361689,5.3291,2777.4,2776.1,3.60216]
[1724544361925,2.3291,2777.4,2776.3,3.6018]
[1724544362134,0.23291,2777.3,2776.5,3.60165]
[1724544362499,3.23291,2777.3,2776.3,3.6019]
[1724544362713,3.23291,2777.3,2776.4,3.60175]
[1724544363329,2.3291,2778.0,2776.6,3.60149]
[1724544363539,0.359938,2778.2,2777.3,3.6005]
[1724544363748,3.59919,2778.4,2777.1,3.60083]
[1724544363890,3.59969,2778.1,2777.1,3.60083]
[1724544364353,3.59984,2777.9,2776.9,3.60109]
[1724544364636,2.3291,2777.6,2776.4,3.60176]
[1724544364791,2.3291,2777.6,2776.6,3.60149]
[1724544364792,5.92935,2777.6,2776.6,3.60149]
[1724544364988,2.3291,2777.6,2776.8,3.60125]
[1724544365642,0.359984,2777.8,2776.5,0.910176]
[1724544365805,3.0,2778.1,2777.0,3.6009]
[1724544366133,3.5996,2778.1,2777.2,3.60062]
[1724544366504,3.0,2778.0,2776.6,6.60151]
[1724544366706,3.0,2778.0,2776.6,3.0]
[1724544366911,5.92988,2777.2,2776.2,3.60203]
[1724544367112,0.592988,2777.1,2776.3,3.60191]
[1724544367441,3.60101,2777.0,2776.0,3.60228]
[1724544368710,3.60101,2777.0,2776.1,0.55]
[1724544369300,0.592988,2777.1,2776.1,0.55]
[1724544369502,5.92985,2777.2,2776.3,3.60191]
[1724544370092,3.60088,2777.1,2776.1,4.15217]
[1724544370300,2.3291,2777.2,2776.1,0.55]
[1724544370501,3.60037,2777.5,2776.4,3.60166]
[1724544370727,3.60037,2777.5,2776.5,0.55]
[1724544370963,3.60037,2777.5,2776.5,0.965166]
[1724544370964,4.193317,2777.5,2776.5,0.965166]
[1724544371170,4.193317,2777.5,2776.6,3.60142]
[1724544371516,0.592947,2777.5,2776.6,3.60142]
[1724544371717,4.193317,2777.5,2776.6,3.60142]
[1724544371936,0.592947,2777.5,2776.8,3.60126]
[1724544372350,2.3291,2777.6,2776.8,0.720268]
[1724544372502,2.3291,2777.6,2776.5,8.275166]
[1724544372503,5.92813,2778.6,2777.6,3.60017]
[1724544372707,3.59928,2778.4,2777.4,3.60045]
[1724544372952,3.59928,2778.4,2777.5,3.67233585]
[1724544373103,2.3291,2779.1,2777.6,0.07199578]
[1724544373306,2.3291,2779.1,2777.7,0.55]
[1724544373548,2.7033657,2779.1,2777.8,3.59991]
[1724544373756,3.59887,2778.7,2777.6,3.60013]
[1724544374060,0.37429128,2779.0,2777.7,0.07199425]
[1724544374206,3.59807,2779.3,2777.8,0.55]
[1724544374408,2.3291,2779.6,2778.5,3.59899]
[1724544374633,2.3291,2779.6,2778.9,3.59854]
[1724544374858,3.59727,2779.9,2778.9,3.59851]
[1724544375055,3.59727,2779.9,2779.1,3.59816]
[1724544375270,0.359727,2779.9,2779.1,3.59816]
[1724544375563,3.5979,2779.4,2778.5,3.59896]
[1724544375707,3.5979,2779.4,2778.3,3.59923]
[1724544375708,3.59803,2779.3,2778.3,3.59923]
[1724544375906,3.59803,2779.3,2778.2,6.59936]
[1724544375907,3.5983,2779.1,2778.2,3.0]
[1724544376207,6.0437,2779.4,2778.5,3.59894]
[1724544376407,2.4458,2779.4,2778.5,3.59894]
[1724544376613,6.59751,2779.7,2778.7,3.5987]
[1724544376808,6.04305,2779.9,2778.8,4.14866]
[1724544376809,3.5974,2779.8,2778.8,4.14866]
[1724544377013,3.5974,2779.8,2778.9,3.59852]
[1724544377228,2.4458,2779.9,2779.1,3.59826]
[1724544377411,2.4458,2779.9,2778.9,3.59852]
[1724544377616,2.4458,2779.9,2778.8,0.55]
[1724544377617,3.84198,2779.8,2778.8,0.45]
[1724544377873,3.59754,2779.7,2778.6,3.59893]
[1724544378072,3.59754,2779.7,2778.6,3.59892]
[1724544378303,3.59764,2779.6,2778.6,3.59892]
[1724544378472,3.59836,2779.1,2778.1,3.59956]
[1724544378689,0.359836,2779.0,2778.3,3.59931]
[1724544378906,6.404086,2779.0,2777.9,3.59981]
[1724544379219,2.805636,2779.0,2777.7,0.36723043]
[1724544379430,2.805636,2779.0,2777.4,3.60048]
[1724544379590,3.59907,2778.5,2777.4,3.60048]
[1724544379775,6.04552,2778.0,2777.0,3.60097]
[1724544379975,6.04552,2778.0,2777.1,3.60086]
[1724544379976,2.4458,2778.0,2777.1,3.60086]
[1724544380185,2.4458,2778.4,2777.5,3.60032]
[1724544380385,2.4458,2778.4,2777.3,3.60059]
[1724544380617,3.59935,2778.3,2777.3,3.60059]
[1724544380819,2.4458,2778.4,2777.4,3.60047]
[1724544381316,3.59934,2778.3,2776.9,3.60113]
[1724544381471,3.59934,2778.3,2776.8,2.3829]
[1724544381472,3.84392,2778.3,2777.3,3.60059]
[1724544381674,2.4458,2778.2,2776.8,3.60125]
[1724544381885,3.60005,2777.8,2776.8,3.60125]
[1724544382123,4.56841995,2778.0,2775.8,2.3829]
[1724544382325,2.4458,2777.3,2776.0,3.6023]
[1724544382538,3.60076,2777.2,2775.9,0.23829]
[1724544382829,3.60111,2777.0,2776.0,3.60227]
[1724544382972,3.60076,2777.2,2776.0,3.60227]
[1724544383178,6.04643,2777.3,2776.0,3.60227]
[1724544383490,6.04643,2777.3,2776.0,3.986326]
[1724544383491,0.904643,2777.2,2776.0,3.986326]
[1724544383876,0.904643,2777.2,2776.0,0.384056]
[1724544384103,3.60084,2777.2,2776.2,3.60203]
[1724544384379,3.0,2777.8,2776.6,3.60151]
[1724544384580,3.6002,2777.7,2776.7,0.07201828]
[1724544384774,3.6002,2777.7,2776.7,3.67339828]
[1724544385091,3.147222,2777.9,2776.9,3.60103]
[1724544385289,3.147222,2777.9,2777.1,3.60083]
[1724544385519,6.747072,2777.9,2776.9,3.60103]
[1724544385722,3.147222,2777.9,2777.1,3.60077]
[1724544385879,3.147222,2777.9,2776.9,3.6011]
[1724544386084,2.4458,2777.9,2776.9,3.6011]
[1724544386439,3.59998,2777.8,2776.8,2.3829]
[1724544386597,3.59908,2778.5,2777.0,0.45688382]
[1724544386937,2.4458,2779.0,2777.2,2.3829]
[1724544387080,6.41773264,2779.5,2778.6,3.59889]
[1724544387280,7.04518426,2779.5,2778.6,3.59889]
[1724544387692,3.44732426,2779.5,2778.4,3.59909]
[1724544388042,3.44732426,2779.5,2778.5,3.59905]
[1724544388197,7.04513426,2779.5,2778.5,3.59905]
[1724544388525,7.04513426,2779.5,2778.3,3.59931]
[1724544388526,3.59803,2779.3,2778.3,3.59931]
[1724544388726,0.359803,2779.2,2777.9,6.59979]
[1724544389067,3.44732426,2779.5,2777.4,3.60048]
[1724544389068,2.4458,2778.6,2777.4,3.60048]
[1724544389339,3.59924,2778.4,2777.5,3.60026]
[1724544389629,3.59924,2778.4,2777.3,3.6006]
[1724544389630,3.59919,2778.4,2777.3,3.6006]
[1724544389830,3.59919,2778.4,2777.3,3.60056]
[1724544389980,3.59919,2778.4,2777.4,3.60044]
[1724544390187,0.359919,2778.3,2777.4,3.60044]
[1724544390438,0.359919,2778.3,2776.9,4.05798382]
[1724544390439,3.59948,2778.2,2776.9,4.05798382]
[1724544390601,3.59986,2777.9,2777.0,3.60092]
[1724544390808,2.4458,2777.9,2776.8,3.60124]
[1724544391002,3.60006,2777.8,2776.8,3.60124]
[1724544391843,2.4458,2777.9,2776.3,2.3829]
[1724544391844,2.4458,2777.9,2776.3,3.60191]
[1724544392004,3.60038,2777.5,2775.9,2.3829]
[1724544392188,3.60072,2777.3,2776.3,3.60181]
[1724544392649,3.60075,2777.2,2776.3,3.60181]
[1724544392946,0.360038,2777.4,2776.4,3.60169]
[1724544393101,3.960518,2777.4,2776.4,3.60169]
[1724544393306,3.960518,2777.4,2776.2,3.60199]
[1724544393511,3.60084,2777.2,2776.2,3.60199]
[1724544393723,0.3960518,2777.3,2776.3,3.60189]
[1724544393946,6.60001,2777.8,2776.0,0.23829]
[1724544393947,3.0,2777.8,2776.8,3.60117]
[1724544394247,2.4458,2777.9,2776.0,0.23829]
[1724544394248,2.4458,2777.9,2777.2,3.60073]
[1724544394550,3.59866,2778.9,2777.2,3.60073]
[1724544394551,3.59866,2778.9,2777.2,0.07200752]
[1724544394769,3.63346569,2779.7,2779.3,3.598]
[1724544395054,5.52149655,2781.5,2779.5,2.4808]
[1724544395191,5.52149655,2781.5,2780.5,3.5964]
[1724544395394,5.52149655,2781.5,2780.7,3.59615]
[1724544395591,5.52149655,2781.5,2780.8,3.99582237]
[1724544395787,0.37626049,2782.2,2780.3,9.07746]
[1724544396041,3.59472,2781.9,2780.4,0.55]
[1724544396337,3.59472,2781.9,2780.0,3.0]
[1724544396338,0.37416349,2781.9,2780.0,3.0]
[1724544396572,0.37416349,2781.9,2780.1,0.55]
[1724544396727,4.56841995,2781.7,2780.0,19.53]
[1724544396923,3.59538,2781.4,2780.0,21.483]
[1724544397318,3.59538,2781.4,2780.0,19.53]
[1724544397517,2.3948,2781.1,2780.0,19.53]
[1724544397731,5.3948,2781.1,2779.2,12.22]
[1724544398059,5.3948,2781.1,2779.1,7.31]
[1724544398221,5.3948,2781.1,2779.2,0.55]
[1724544398422,0.996322,2781.0,2779.3,0.786]
[1724544398634,3.996322,2781.0,2779.3,0.786]
[1724544398809,3.996322,2781.0,2779.6,7.31]
[1724544398810,2.3948,2780.8,2779.6,7.31]
[1724544399009,5.991,2780.8,2779.6,7.31]